bitfinex-derivatives/quotes_SOLF0:USTF0_20260213
["timestamp","ask_amount","ask_price","bid_price","bid_amount"]
[1770949459900,4.08892256,78.669,78.63,15.35875207]
[1770949461499,4.08892256,78.691,78.631,3.90425207]
[1770949461700,4.08892256,78.691,78.651,3.90425207]
[1770949462002,4.08892256,78.702,78.661,3.90425207]
[1770949462506,4.08892256,78.702,78.668,3.90425207]
[1770949464292,4.08892256,78.715,78.671,3.90425207]
[1770949464498,4.08892256,78.727,78.681,3.90425207]
[1770949465695,3.31476873,78.75,78.701,3.90425207]
[1770949466805,4.08892256,78.769,78.713,3.90425207]
[1770949467101,4.08892256,78.759,78.713,3.90425207]
[1770949467305,4.08892256,78.749,78.701,3.90425207]
[1770949467806,4.08892256,78.749,78.704,3.90425207]
[1770949468405,4.08892256,78.749,78.711,3.90425207]
[1770949468602,3.31476873,78.76,78.713,3.90425207]
[1770949468801,7.40369129,78.76,78.713,3.90425207]
[1770949469001,4.08892256,78.76,78.713,3.90425207]
[1770949470706,4.08892256,78.76,78.721,4.02798473]
[1770949472002,4.1867401,78.759,78.721,4.02798473]
[1770949472412,4.1867401,78.759,78.71,7.33220539]
[1770949472599,4.1867401,78.759,78.711,4.02798473]
[1770949473612,11.4346,78.768,78.711,4.02798473]
[1770949473613,4.01004351,78.749,78.711,4.02798473]
[1770949475015,4.01004351,78.739,78.698,4.06747267]
[1770949476016,4.01004351,78.739,78.701,4.06747267]
[1770949476709,4.01004351,78.739,78.704,11.4438]
[1770949477816,4.01004351,78.739,78.701,4.06747267]
[1770949480217,4.01004351,78.739,78.702,15.51147267]
[1770949480916,4.01004351,78.739,78.703,4.06747267]
[1770949481112,4.01004351,78.751,78.71,4.06747267]
[1770949481416,4.01004351,78.751,78.711,4.06747267]
[1770949482010,4.01004351,78.749,78.711,4.06747267]
[1770949488114,4.01004351,78.749,78.713,4.06747267]
[1770949489624,4.01004351,78.76,78.718,4.06747267]
[1770949489927,4.01004351,78.793,78.741,4.06747267]
[1770949490109,553.365898,78.806,78.741,4.06747267]
[1770949490110,4.01004351,78.789,78.741,4.06747267]
[1770949490418,4.01004351,78.789,78.751,4.06747267]
[1770949490914,4.01004351,78.789,78.75,3.30422066]
[1770949490915,4.01004351,78.789,78.739,4.06747267]
[1770949491820,4.01004351,78.788,78.741,11.4383]
[1770949492017,4.01004351,78.788,78.742,4.06747267]
[1770949493221,4.01004351,78.788,78.745,4.06747267]
[1770949494425,4.01004351,78.779,78.73,3.30422066]
[1770949495025,4.01004351,78.779,78.733,4.06747267]
[1770949495821,4.01004351,78.779,78.737,11.4389]
[1770949496323,553.365898,78.806,78.709,101.4]
[1770949496324,4.01004351,78.769,78.72,3.30422066]
[1770949497024,4.01004351,78.769,78.721,4.06747267]
[1770949497220,4.01004351,78.779,78.731,4.06747267]
[1770949498324,553.365898,78.806,78.741,4.06747267]
[1770949498325,15.44134351,78.791,78.741,4.06747267]
[1770949499217,4.01004351,78.79,78.748,11.4374]
[1770949499522,4.01004351,78.79,78.748,15.50487267]
[1770949500525,553.365898,78.806,78.761,4.11819131]
[1770949500526,3.8306294,78.804,78.761,4.11819131]
[1770949500830,3.8306294,78.815,78.771,4.11819131]
[1770949501720,3.8306294,78.815,78.772,4.11819131]
[1770949502722,3.8306294,78.815,78.774,11.4335]
[1770949503026,3.8306294,78.815,78.775,4.11819131]
[1770949503727,3.8306294,78.829,78.781,4.11819131]
[1770949503931,3.8306294,78.829,78.791,4.11819131]
[1770949506430,192.40781043,78.837,78.793,4.11819131]
[1770949507828,196.23843983,78.837,78.794,11.4306]
[1770949508029,3.8306294,78.836,78.794,11.4306]
[1770949510328,3.8306294,78.836,78.793,4.11819131]
[1770949511924,3.8306294,78.836,78.795,4.11819131]
[1770949515531,3.8306294,78.834,78.795,4.11819131]
[1770949516738,43.55103997,78.859,78.81,3.30422066]
[1770949517740,43.55103997,78.859,78.812,11.428]
[1770949518734,43.55103997,78.859,78.82,11.4269]
[1770949519240,43.53393239,78.839,78.802,11.4295]
[1770949519449,43.53393239,78.839,78.79,3.30422066]
[1770949520144,43.53393239,78.839,78.801,11.4296]
[1770949523047,43.56112292,78.829,78.793,11.4307]
[1770949523648,43.56112292,78.829,78.78,3.30422066]
[1770949523944,43.56112292,78.829,78.77,3.30422066]
[1770949524351,3.30422066,78.82,78.776,11.4332]
[1770949524544,43.56112292,78.819,78.776,11.4332]
[1770949525059,43.54776379,78.817,78.767,11.4346]
[1770949525346,43.54776379,78.817,78.77,3.30422066]
[1770949526753,43.54776379,78.817,78.774,11.4335]
[1770949527140,43.54776379,78.817,78.76,3.30422066]
[1770949528743,43.54776379,78.817,78.766,11.4347]
[1770949528950,43.54360762,78.809,78.75,3.30422066]
[1770949529748,3.30422066,78.8,78.761,11.4355]
[1770949530051,43.54360762,78.799,78.761,11.4355]
[1770949530449,43.54360762,78.799,78.692,31.40109862]
[1770949530644,3.30422066,78.8,78.685,60.41691565]
[1770949530645,3.30422066,78.73,78.685,60.41691565]
[1770949530850,38.2,78.804,78.69,3.30656623]
[1770949531144,3.30656623,78.77,78.711,60.41540281]
[1770949531453,3.30656623,78.79,78.731,60.41540281]
[1770949531648,11.77445039,78.828,78.74,60.41540281]
[1770949531955,3.30656623,78.79,78.74,63.72196904]
[1770949532346,11.4302,78.798,78.74,63.72196904]
[1770949532546,11.4302,78.798,78.75,3.30656623]
[1770949532939,3.30656623,78.81,78.76,3.30656623]
[1770949533144,3.30656623,78.8,78.737,60.73170758]
[1770949533354,3.30656623,78.79,78.74,3.30656623]
[1770949533551,3.30656623,78.8,78.74,3.30656623]
[1770949534352,11.4316,78.788,78.74,3.30656623]
[1770949537257,11.4316,78.788,78.737,60.73170758]
[1770949537555,3.30656623,78.78,78.737,60.73170758]
[1770949540154,11.4316,78.788,78.704,101.32]
[1770949540155,11.4316,78.788,78.741,60.52282593]
[1770949541857,11.4303,78.798,78.751,60.54193331]
[1770949544149,11.4313,78.791,78.751,60.54193331]
[1770949552778,11.4301,78.799,78.751,60.54193331]
[1770949552976,9.62164962,78.813,78.751,60.54193331]
[1770949553177,11.4318,78.787,78.751,60.54193331]
[1770949558084,11.4304,78.796,78.751,71.97873331]
[1770949558380,22.8485,78.839,78.72,8.84406621]
[1770949558381,9.62164962,78.836,78.761,60.54534597]
[1770949558582,9.62164962,78.835,78.761,60.54534597]
[1770949558771,8.84406621,78.84,78.761,60.54534597]
[1770949558772,9.62164962,78.839,78.761,60.54534597]
[1770949558973,9.62164962,78.838,78.761,60.54534597]
[1770949559185,11.4258,78.828,78.781,60.5041819]
[1770949559374,9.62164962,78.839,78.781,60.5041819]
[1770949559375,9.62164962,78.85,78.781,60.5041819]
[1770949559571,9.62164962,78.859,78.781,60.5041819]
[1770949559771,9.62164962,78.858,78.781,60.5041819]
[1770949559981,8.84406621,78.86,78.781,60.5041819]
[1770949559982,9.62164962,78.857,78.781,60.5041819]
[1770949560177,9.62164962,78.856,78.781,60.5041819]
[1770949560380,11.4229,78.849,78.801,60.5041819]
[1770949561184,11.4211,78.861,78.813,60.49670008]
[1770949562277,11.4211,78.861,78.815,60.49670008]
[1770949563884,11.4197,78.87,78.815,60.49670008]
[1770949564079,14.71596446,78.87,78.821,60.47289482]
[1770949564680,11.4209,78.862,78.821,60.47289482]
[1770949564881,3.29626446,78.86,78.821,60.47289482]
[1770949565787,11.4213,78.859,78.821,60.47289482]
[1770949566484,3.29626446,78.85,78.801,60.46849748]
[1770949567585,3.29626446,78.82,78.771,60.33087368]
[1770949567793,3.29626446,78.84,78.791,60.33087368]
[1770949568089,3.29626446,78.84,78.746,101.3]
[1770949568090,3.29626446,78.83,78.778,60.33087368]
[1770949568389,3.29626446,78.82,78.778,60.33087368]
[1770949568785,3.29626446,78.81,78.761,60.35871114]
[1770949568990,3.29626446,78.8,78.761,60.35871114]
[1770949569484,11.4301,78.799,78.761,60.35871114]
[1770949570782,3.29626446,78.81,78.761,60.35871114]
[1770949571492,3.29626446,78.83,78.771,60.35047811]
[1770949571794,3.29626446,78.83,78.74,101.3]
[1770949571795,3.29626446,78.83,78.781,60.35047811]
[1770949572793,11.426,78.827,78.781,60.35047811]
[1770949572990,3.29626446,78.84,78.791,60.3461504]
[1770949573386,3.29626446,78.83,78.791,60.3461504]
[1770949574388,11.4257,78.829,78.791,60.3461504]
[1770949577294,14.72326446,78.82,78.76,3.29626446]
[1770949577485,3.29626446,78.81,78.76,3.29626446]
[1770949577796,3.29626446,78.81,78.75,3.29626446]
[1770949577997,3.29626446,78.8,78.755,11.4363]
[1770949578198,3.29626446,78.8,78.75,3.29626446]
[1770949578397,3.29626446,78.8,78.74,3.29626446]
[1770949578794,3.29626446,78.79,78.74,3.29626446]
[1770949578989,8.84663398,78.81,78.72,8.84663398]
[1770949579499,105.04,78.809,78.728,50.60712619]
[1770949579796,11.4317,78.788,78.736,50.60712619]
[1770949580794,11.4317,78.788,78.739,50.61274656]
[1770949581799,11.4317,78.788,78.741,50.61274656]
[1770949581993,8.84663398,78.83,78.741,50.61274656]
[1770949582296,8.84663398,78.85,78.79,50.61274656]
[1770949582600,11.4245,78.837,78.79,50.61274656]
[1770949582797,8.84663398,78.83,78.761,50.61070731]
[1770949583200,9.32439014,78.829,78.761,50.61070731]
[1770949583400,159.90439014,78.828,78.761,50.61070731]
[1770949583601,9.32439014,78.827,78.761,50.61070731]
[1770949583790,11.4299,78.8,78.761,50.61070731]
[1770949583990,150.58,78.828,78.761,50.61070731]
[1770949584194,150.68,78.827,78.761,50.61070731]
[1770949584396,150.68,78.827,78.764,50.61070731]
[1770949584701,8.84663398,78.82,78.764,50.61070731]
[1770949585300,11.4292,78.805,78.764,50.61070731]
[1770949585505,8.84663398,78.82,78.741,50.55532268]
[1770949586498,11.429,78.806,78.75,11.4371]
[1770949586699,8.84663398,78.82,78.751,50.55532268]
[1770949587507,150.86,78.819,78.751,50.55532268]
[1770949587701,11.4301,78.799,78.751,50.55532268]
[1770949588698,11.4289,78.807,78.755,50.5473302]
[1770949589805,11.4289,78.807,78.761,50.5473302]
[1770949590005,11.4302,78.798,78.761,50.5473302]
[1770949593707,11.4314,78.79,78.748,50.53009068]
[1770949594098,9.33351278,78.812,78.748,50.53009068]
[1770949594302,11.4291,78.806,78.757,50.53009068]
[1770949595602,11.4279,78.814,78.767,50.53026533]
[1770949596408,11.7880185,78.838,78.75,8.84409056]
[1770949596409,11.4264,78.824,78.77,50.53026533]
[1770949597812,11.425,78.834,78.778,50.51623949]
[1770949598512,11.425,78.834,78.754,103.14]
[1770949598513,11.426,78.827,78.787,50.51623949]
[1770949599013,9.12783903,78.846,78.787,50.51623949]
[1770949599213,8.84409056,78.84,78.787,50.51623949]
[1770949600114,9.12783903,78.846,78.787,50.51623949]
[1770949600413,150.16,78.85,78.787,50.51623949]
[1770949600615,9.12783903,78.849,78.787,50.51623949]
[1770949601004,14.72287954,78.84,78.796,50.46866218]
[1770949601210,11.4241,78.84,78.796,50.46866218]
[1770949601712,11.4229,78.848,78.797,11.4301]
[1770949601913,11.4229,78.848,78.798,50.46866218]
[1770949602108,3.29877954,78.84,78.798,50.46866218]
[1770949602702,3.29877954,78.84,78.804,50.46531919]
[1770949603514,11.4242,78.839,78.804,50.46531919]
[1770949605110,11.4229,78.848,78.804,50.46531919]
[1770949605415,3.29877954,78.84,78.804,50.46531919]
[1770949605815,11.4245,78.837,78.804,50.46531919]
[1770949607319,3.29877954,78.84,78.804,50.46531919]
[1770949609827,11.4243,78.838,78.804,50.46531919]
[1770949610417,11.4255,78.83,78.782,11.4324]
[1770949610622,14.72427954,78.83,78.783,50.48453807]
[1770949611014,3.29877954,78.83,78.786,50.49176685]
[1770949611218,3.29877954,78.83,78.768,103.34]
[1770949611219,3.29877954,78.84,78.791,50.49176685]
[1770949612223,3.29877954,78.85,78.812,50.49176685]
[1770949612814,11.4239,78.841,78.812,50.49176685]
[1770949613020,3.29877954,78.84,78.795,50.47792827]
[1770949614615,11.4242,78.839,78.795,61.90852827]
[1770949615636,11.4253,78.832,78.795,50.47792827]
[1770949615823,3.29877954,78.84,78.795,50.47792827]
[1770949616731,14.72297954,78.84,78.797,50.47486671]
[1770949617129,11.4242,78.84,78.801,50.47486671]
[1770949617433,11.4213,78.859,78.815,50.47486671]
[1770949619225,3.29877954,78.85,78.815,50.47486671]
[1770949619824,14.72147954,78.85,78.815,50.47486671]
[1770949620629,3.29877954,78.85,78.815,50.47486671]
[1770949620932,149.64,78.854,78.78,3.29877954]
[1770949620933,3.29877954,78.84,78.78,3.29877954]
[1770949621129,11.4255,78.83,78.79,3.29877954]
[1770949621833,11.4242,78.839,78.794,11.4306]
[1770949622033,3.29877954,78.83,78.78,3.29877954]
[1770949622233,11.4258,78.828,78.787,11.4316]
[1770949623035,11.4272,78.819,78.788,39.55323598]
[1770949623827,3.29877954,78.81,78.775,39.55323598]
[1770949624228,3.29877954,78.8,78.751,39.55323598]
[1770949625030,3.29877954,78.79,78.753,39.59295513]
[1770949625627,11.4324,78.783,78.753,39.59295513]
[1770949626324,11.4331,78.778,78.753,39.59295513]
[1770949626529,3.29877954,78.79,78.753,39.59295513]
[1770949628140,11.4315,78.789,78.753,39.59295513]
[1770949628339,3.29877954,78.79,78.753,39.59295513]
[1770949629744,11.4328,78.78,78.753,39.59295513]
[1770949630837,11.7880185,78.822,78.753,39.59295513]
[1770949631039,38.2,78.828,78.753,39.59295513]
[1770949631040,3.29877954,78.8,78.753,39.59295513]
[1770949631844,3.29877954,78.8,78.756,39.65423525]
[1770949632040,11.429,78.806,78.76,3.29877954]
[1770949632235,11.429,78.806,78.761,39.65423525]
[1770949632542,3.29877954,78.81,78.761,51.08973525]
[1770949632743,3.29877954,78.81,78.762,39.65423525]
[1770949633336,11.4286,78.809,78.762,39.65423525]
[1770949633836,3.29877954,78.8,78.762,39.65423525]
[1770949634544,11.4301,78.799,78.762,39.65423525]
[1770949635038,11.4288,78.807,78.762,39.65423525]
[1770949635636,3.29877954,78.8,78.762,39.65423525]
[1770949638451,11.4301,78.799,78.762,39.65423525]
[1770949641445,9.12825138,78.818,78.78,33.94988149]
[1770949641652,3.29877954,78.82,78.78,33.94988149]
[1770949642345,11.4286,78.809,78.78,33.94988149]
[1770949648154,11.4275,78.817,78.78,33.94988149]
[1770949653249,3.29877954,78.81,78.78,33.94988149]
[1770949653450,11.4275,78.817,78.78,33.94988149]
[1770949656347,3.30021747,78.82,78.78,33.94988149]
[1770949656554,101.32,78.84,78.78,33.94988149]
[1770949656555,9.12887682,78.839,78.78,33.94988149]
[1770949656752,3.30021747,78.82,78.78,33.94988149]
[1770949656955,11.4271,78.819,78.78,33.94988149]
[1770949658346,9.12887682,78.835,78.78,37.25009896]
[1770949658545,3.30021747,78.85,78.801,33.99089233]
[1770949659053,3.30021747,78.84,78.801,33.99089233]
[1770949659857,3.30021747,78.83,78.781,33.96021352]
[1770949660058,9.12887682,78.846,78.781,33.96021352]
[1770949660059,3.30021747,78.82,78.781,33.96021352]
[1770949661055,3.30021747,78.81,78.781,33.96021352]
[1770949661455,3.30021747,78.81,78.762,33.92927421]
[1770949662049,3.30021747,78.8,78.762,33.92927421]
[1770949666560,9.12887682,78.807,78.762,33.92927421]
[1770949666761,9.12887682,78.806,78.762,33.92927421]
[1770949667063,9.12887682,78.805,78.762,33.92927421]
[1770949667259,9.12887682,78.804,78.762,33.92927421]
[1770949667456,9.12887682,78.803,78.762,33.92927421]
[1770949667758,3.30021747,78.8,78.762,33.92927421]
[1770949671462,14.72861747,78.81,78.762,33.92927421]
[1770949671663,9.15007832,78.809,78.762,33.92927421]
[1770949671850,9.15007832,78.808,78.762,33.92927421]
[1770949672054,9.15007832,78.807,78.762,33.92927421]
[1770949672261,9.15007832,78.806,78.762,33.92927421]
[1770949672462,14.72861747,78.81,78.762,33.92927421]
[1770949672663,9.15162576,78.809,78.762,33.92927421]
[1770949672860,9.15162576,78.808,78.762,33.92927421]
[1770949673055,9.15162576,78.807,78.762,33.92927421]
[1770949673256,9.15162576,78.806,78.762,33.92927421]
[1770949673451,9.15162576,78.805,78.762,33.92927421]
[1770949673756,14.72861747,78.81,78.762,33.92927421]
[1770949673956,9.15278233,78.809,78.762,33.92927421]
[1770949674154,11.4288,78.807,78.762,33.92927421]
[1770949674359,9.15278233,78.806,78.762,33.92927421]
[1770949674552,9.15278233,78.805,78.762,33.92927421]
[1770949674760,11.4288,78.807,78.762,33.92927421]
[1770949674962,9.15454507,78.806,78.765,33.91002059]
[1770949675159,3.30021747,78.81,78.765,33.91002059]
[1770949675556,11.4286,78.809,78.766,11.4348]
[1770949675761,11.4286,78.809,78.767,33.91002059]
[1770949676669,11.4275,78.817,78.771,33.91002059]
[1770949677067,11.426,78.827,78.779,11.4328]
[1770949677262,9.15467723,78.826,78.78,37.2096382]
[1770949677470,9.15467723,78.825,78.78,37.2096382]
[1770949677656,9.15467723,78.824,78.782,33.90942073]
[1770949677863,3.30021747,78.84,78.791,33.90942073]
[1770949678063,9.15239349,78.839,78.791,33.90942073]
[1770949678265,9.15239349,78.838,78.791,33.90942073]
[1770949678467,9.15239349,78.837,78.791,33.90942073]
[1770949678669,9.15239349,78.836,78.791,33.90942073]
[1770949678871,9.15239349,78.835,78.791,33.90942073]
[1770949679071,9.15239349,78.834,78.791,33.90942073]
[1770949679272,9.15239349,78.833,78.791,33.90942073]
[1770949679470,9.15239349,78.832,78.791,33.90942073]
[1770949679673,14.72431747,78.84,78.791,33.90942073]
[1770949679872,9.14993613,78.839,78.791,33.90942073]
[1770949680073,9.14993613,78.838,78.791,33.90942073]
[1770949680273,9.14993613,78.837,78.791,33.90942073]
[1770949680472,11.4241,78.84,78.794,33.88285967]
[1770949680672,3.30021747,78.85,78.801,33.88285967]
[1770949680877,11.4225,78.851,78.801,33.88285967]
[1770949681774,11.4235,78.844,78.803,33.80287113]
[1770949682070,3.30021747,78.84,78.803,33.80287113]
[1770949682276,9.14249294,78.839,78.803,33.80287113]
[1770949682478,9.14249294,78.838,78.803,33.80287113]
[1770949682778,3.30021747,78.84,78.803,33.80287113]
[1770949682966,9.14329148,78.839,78.803,33.80287113]
[1770949683167,3.30021747,78.84,78.803,33.80287113]
[1770949683372,9.1420775,78.839,78.803,33.80287113]
[1770949683576,3.30021747,78.84,78.803,33.80287113]
[1770949683777,20.56646853,78.839,78.803,33.80287113]
[1770949683977,9.14216853,78.838,78.803,33.80287113]
[1770949684177,9.14142516,78.838,78.803,33.80287113]
[1770949684380,11.4243,78.839,78.803,33.80287113]
[1770949684679,9.14142516,78.838,78.803,33.80287113]
[1770949685073,11.4243,78.839,78.803,33.80287113]
[1770949686170,20.56433666,78.839,78.803,33.80287113]
[1770949687077,11.4243,78.839,78.803,33.80287113]
[1770949690982,11.4253,78.832,78.803,33.80287113]
[1770949692684,11.4239,78.841,78.803,33.80287113]
[1770949693882,3.30021747,78.85,78.803,33.80287113]
[1770949695078,11.4235,78.844,78.803,33.80287113]
[1770949699584,11.4245,78.837,78.803,33.80287113]
[1770949700883,11.4235,78.844,78.803,33.80287113]
[1770949703188,11.4244,78.838,78.803,33.80287113]
[1770949703489,3.30021747,78.85,78.803,33.80287113]
[1770949704687,11.4234,78.845,78.804,33.90760664]
[1770949704883,3.30021747,78.86,78.811,33.90723479]
[1770949705792,11.4217,78.857,78.812,33.90723479]
[1770949705991,3.30021747,78.86,78.812,33.90723479]
[1770949706188,145.98,78.873,78.814,33.90723479]
[1770949706394,3.30021747,78.86,78.814,33.90723479]
[1770949707793,11.4222,78.853,78.814,33.90723479]
[1770949710397,11.4231,78.847,78.814,33.90723479]
[1770949713395,11.4246,78.837,78.814,33.90723479]
[1770949713904,11.4255,78.831,78.803,33.85652939]
[1770949715199,11.4244,78.838,78.803,33.85652939]
[1770949715502,3.30021747,78.86,78.803,33.85652939]
[1770949716100,3.30021747,78.86,78.782,106.56]
[1770949716101,3.30021747,78.86,78.811,33.86122653]
[1770949716604,11.4232,78.846,78.811,33.86122653]
[1770949720201,3.29694693,78.85,78.811,33.86122653]
[1770949720801,146.04,78.869,78.811,33.86122653]
[1770949721006,3.29694693,78.86,78.811,33.86122653]
[1770949721406,11.4213,78.859,78.815,33.85026218]
[1770949724803,3.29694693,78.85,78.815,33.85026218]
[1770949725502,11.4213,78.859,78.815,33.85026218]
[1770949726608,3.29694693,78.85,78.815,33.85026218]
[1770949729113,11.4213,78.859,78.815,33.85026218]
[1770949730115,3.29694693,78.86,78.815,33.85026218]
[1770949730116,11.4223,78.852,78.815,33.85026218]
[1770949730316,3.29694693,78.85,78.815,33.85026218]
[1770949731812,11.4223,78.852,78.815,33.85026218]
[1770949732519,3.29694693,78.85,78.815,33.85026218]
[1770949733119,11.4223,78.852,78.815,33.85026218]
[1770949734818,3.29694693,78.85,78.805,33.89345181]
[1770949735809,11.4247,78.836,78.805,33.89345181]
[1770949737922,11.4258,78.828,78.78,3.29694693]
[1770949738421,14.72394693,78.82,78.77,14.73104693]
[1770949739712,14.72394693,78.82,78.771,24.04073873]
[1770949739914,14.72394693,78.82,78.773,24.04073873]
[1770949740114,11.427,78.82,78.773,24.04073873]
[1770949741410,11.427,78.82,78.775,11.4333]
[1770949741612,11.4279,78.814,78.776,24.08588303]
[1770949743926,11.4294,78.803,78.776,24.08588303]
[1770949745322,3.29694693,78.81,78.776,24.08588303]
[1770949748220,3.29694693,78.8,78.776,24.08588303]
[1770949749234,146.86525463,78.824,78.776,24.08588303]
[1770949749551,3.29694693,78.81,78.776,24.08588303]
[1770949749834,11.4289,78.807,78.776,24.08588303]
[1770949750332,11.43,78.8,78.776,24.08588303]
[1770949750931,14.72694693,78.8,78.776,24.08588303]
[1770949752030,14.72694693,78.8,78.753,24.12844549]
[1770949752733,3.29694693,78.79,78.753,24.12844549]
[1770949753637,3.29694693,78.78,78.753,24.12844549]
[1770949753834,11.4319,78.787,78.753,24.12844549]
[1770949754333,3.29694693,78.78,78.753,24.12844549]
[1770949755730,11.4319,78.787,78.753,24.12844549]
[1770949757125,11.4327,78.781,78.753,24.12844549]
[1770949759130,11.4316,78.788,78.753,24.12844549]
[1770949759937,11.4325,78.782,78.753,24.12844549]
[1770949761432,11.4336,78.775,78.753,24.12844549]
[1770949764334,11.4325,78.782,78.753,24.12844549]
[1770949764939,101.32,78.817,78.753,24.12844549]
[1770949765134,3.29694693,78.8,78.753,24.12844549]
[1770949765736,14.72694693,78.8,78.753,24.12844549]
[1770949769341,22.8483,78.84,78.763,18.33117646]
[1770949769342,11.4287,78.808,78.763,18.33117646]
[1770949770829,11.4287,78.808,78.765,18.33117646]
[1770949772440,14.72684693,78.8,78.765,18.33117646]
[1770949772638,3.29694693,78.79,78.754,18.33326237]
[1770949773444,14.72834693,78.79,78.754,18.33326237]
[1770949776336,11.8644913,78.817,78.754,18.33326237]
[1770949776337,11.4301,78.799,78.754,18.33326237]
[1770949777447,11.4289,78.807,78.763,18.32200951]
[1770949778647,11.4299,78.8,78.763,18.32200951]
[1770949780445,14.73111305,78.8,78.763,18.32200951]
[1770949781245,11.4308,78.794,78.763,18.32200951]
[1770949786349,11.4297,78.801,78.763,18.32200951]
[1770949786554,9.15423343,78.8,78.763,18.32200951]
[1770949786753,9.15423343,78.799,78.763,18.32200951]
[1770949786954,9.15423343,78.798,78.763,18.32200951]
[1770949787153,11.4297,78.801,78.763,18.32200951]
[1770949787354,11.4301,78.799,78.763,18.32200951]
[1770949787654,9.15577743,78.798,78.763,18.32200951]
[1770949787853,11.4301,78.799,78.763,18.32200951]
[1770949788055,9.15577743,78.798,78.763,18.32200951]
[1770949788254,9.15743356,78.797,78.763,18.32200951]
[1770949788554,11.4301,78.799,78.763,18.32200951]
[1770949788855,9.15743356,78.798,78.763,18.32200951]
[1770949789056,9.15743356,78.797,78.763,18.32200951]
[1770949789256,11.4301,78.799,78.763,18.32200951]
[1770949789457,9.15771436,78.798,78.763,18.32200951]
[1770949789658,9.15771436,78.797,78.763,18.32200951]
[1770949789855,11.4301,78.799,78.763,18.32200951]
[1770949790052,9.15771436,78.798,78.763,18.32200951]
[1770949790252,11.4301,78.799,78.763,18.32200951]
[1770949790556,9.15773765,78.798,78.763,18.32200951]
[1770949790757,11.4301,78.799,78.763,18.32200951]
[1770949790957,11.4289,78.807,78.763,18.32200951]
[1770949791149,9.15754602,78.806,78.763,18.32200951]
[1770949791459,9.15754602,78.805,78.763,18.32200951]
[1770949791652,9.15754602,78.804,78.763,18.32200951]
[1770949791853,9.15754602,78.803,78.765,18.31310897]
[1770949792162,9.15754602,78.802,78.765,18.31310897]
[1770949792365,9.15754602,78.801,78.765,18.31310897]
[1770949792560,11.43,78.799,78.765,18.31310897]
[1770949792750,9.15754602,78.798,78.765,18.31310897]
[1770949792954,9.15754602,78.797,78.765,18.31310897]
[1770949793262,9.15754602,78.796,78.765,18.31310897]
[1770949793457,9.15754602,78.795,78.765,18.31310897]
[1770949793762,9.15754602,78.794,78.765,18.31310897]
[1770949793959,11.43,78.799,78.765,18.31310897]
[1770949794260,9.15796341,78.798,78.765,18.31310897]
[1770949794461,11.43,78.799,78.765,18.31310897]
[1770949794663,9.15800417,78.798,78.765,18.31310897]
[1770949794866,11.43,78.799,78.765,18.31310897]
[1770949795057,9.15800417,78.798,78.765,18.31310897]
[1770949795258,11.43,78.799,78.765,18.31310897]
[1770949795462,9.1578323,78.798,78.765,18.31310897]
[1770949795763,11.43,78.799,78.765,18.31310897]
[1770949795966,9.1578323,78.798,78.765,18.31310897]
[1770949796267,11.43,78.799,78.765,18.31310897]
[1770949796465,9.15767129,78.798,78.765,18.31310897]
[1770949796656,11.43,78.799,78.765,18.31310897]
[1770949796856,9.15767523,78.798,78.765,18.31310897]
[1770949797052,11.429,78.806,78.765,18.31310897]
[1770949797257,11.429,78.806,78.76,11.4356]
[1770949797258,9.15767278,78.805,78.744,18.35491383]
[1770949797457,3.30121305,78.76,78.716,18.35491383]
[1770949797657,3.30121305,78.75,78.716,18.35491383]
[1770949798054,9.16320562,78.749,78.716,18.35491383]
[1770949798262,9.16320562,78.748,78.716,18.35491383]
[1770949798464,9.15376808,78.747,78.705,18.35491383]
[1770949798770,107.58,78.77,78.705,18.35491383]
[1770949798771,3.30121305,78.74,78.705,18.35491383]
[1770949800268,12.45499455,78.76,78.711,18.36398241]
[1770949800468,11.8225044,78.768,78.711,18.36398241]
[1770949800469,3.30121305,78.75,78.711,18.36398241]
[1770949801369,3.30121305,78.74,78.711,18.36398241]
[1770949801563,3.30121305,78.73,78.681,18.28155581]
[1770949802367,3.30121305,78.74,78.691,18.28155581]
[1770949802669,3.30121305,78.76,78.711,18.28155581]
[1770949803262,3.30121305,78.75,78.711,18.28155581]
[1770949803464,3.30121305,78.76,78.711,18.28155581]
[1770949804872,11.436,78.758,78.711,18.28155581]
[1770949807074,11.4373,78.749,78.711,18.28155581]
[1770949808869,3.30121305,78.74,78.698,18.2329827]
[1770949810077,14.73991305,78.74,78.698,18.2329827]
[1770949811070,3.30121305,78.73,78.698,18.2329827]
[1770949811277,3.30121305,78.73,78.687,18.24206532]
[1770949811871,3.30121305,78.72,78.674,18.24206532]
[1770949812073,11.4402,78.729,78.674,18.24206532]
[1770949812275,11.4402,78.729,78.681,18.24206532]
[1770949812474,3.30121305,78.73,78.681,18.24206532]
[1770949813076,11.439,78.737,78.691,18.22950616]
[1770949813375,3.30121305,78.75,78.691,18.22950616]